fUSD/lending_fUSD_20260601
["ID","MTS","AMOUNT","RATE_DAILY","PERIOD"]
[423591199,1780252242000,-550.8,0.00014999,2]
[423591198,1780252242000,-550.8,0.00014999,2]
[423591200,1780252242000,-550.8,0.00014999,2]
[423591147,1780252242000,-500.0,0.00013698,2]
[423591202,1780252242000,-300.0,0.00014999,2]
[423591192,1780252242000,-1989.08,0.00014999,2]
[423591179,1780252242000,-384.58747906,0.00014563,2]
[423591203,1780252242000,-776.12834704,0.00014999,2]
[423591175,1780252242000,-500.0,0.00014292,2]
[423591153,1780252242000,-500.0,0.00013698,2]
[423591151,1780252242000,-500.0,0.00013698,2]
[423591155,1780252242000,-151.0,0.00013699,2]
[423591154,1780252242000,-500.0,0.00013698,2]
[423591160,1780252242000,-151.0,0.00013699,2]
[423591159,1780252242000,-151.0,0.00013699,2]
[423591161,1780252242000,-151.0,0.00013699,2]
[423591176,1780252242000,-2000.0,0.00014292,2]
[423591165,1780252242000,-162.917968,0.00013699,2]
[423591163,1780252242000,-151.0,0.00013699,2]
[423591156,1780252242000,-151.0,0.00013699,2]
[423591164,1780252242000,-151.0,0.00013699,2]
[423591162,1780252242000,-151.0,0.00013699,2]
[423591157,1780252242000,-151.0,0.00013699,2]
[423591166,1780252242000,-1739.39,0.000137,2]
[423591169,1780252242000,-2000.0,0.00013969,2]
[423591170,1780252242000,-548.38063715,0.0001399,2]
[423591167,1780252242000,-34244.00700815,0.00013851,2]
[423591168,1780252242000,-25597.41426778,0.00013884,2]
[423591171,1780252242000,-250.0,0.00014,2]
[423591173,1780252242000,-8644.49975259,0.00014247,2]
[423591174,1780252242000,-166.66,0.00014282,2]
[423591172,1780252242000,-200.0,0.00014029,2]
[423591158,1780252242000,-151.0,0.00013699,2]
[423591177,1780252242000,-34244.00700815,0.00014375,2]
[423591242,1780252243000,-450.31,0.00016438,2]
[423591240,1780252243000,-200.0,0.0001634,2]
[423591239,1780252243000,-1739.39,0.000162,2]
[423591241,1780252243000,-772.6,0.00016438,2]
[423591230,1780252243000,-239.04506358,0.00015147,2]
[423591237,1780252243000,-300.0,0.00016,2]
[423591231,1780252243000,-166.66,0.00015184,2]
[423591227,1780252243000,-1067.568537,0.00015068,2]
[423591236,1780252243000,-2273.37776545,0.00015807,2]
[423591238,1780252243000,-201.10590632,0.000161,7]
[423591256,1780252243000,-198.90849244,0.000183,2]
[423591245,1780252243000,-389.761139,0.00016438,2]
[423591244,1780252243000,-389.761139,0.00016438,2]
[423591246,1780252243000,-389.761139,0.00016438,2]
[423591247,1780252243000,-389.761139,0.00016438,2]
[423591248,1780252243000,-389.761139,0.00016438,2]
[423591249,1780252243000,-389.761139,0.00016438,2]
[423591252,1780252243000,-1090.00342372,0.0001789,2]
[423591253,1780252243000,-8076.97962194,0.00018,2]
[423591251,1780252243000,-168.2,0.00016712,2]
[423591254,1780252243000,-350.0,0.00018,2]
[423591232,1780252243000,-572.46,0.0001521,2]
[423591243,1780252243000,-389.761139,0.00016438,2]
[423591228,1780252243000,-1067.568537,0.00015068,2]
[423591219,1780252243000,-151.0,0.00015,2]
[423591226,1780252243000,-1067.568537,0.00015068,2]
[423591255,1780252243000,-198.90849244,0.000181,2]
[423591213,1780252243000,-151.0,0.00015,2]
[423591204,1780252243000,-300.0,0.00014999,2]
[423591206,1780252243000,-3628207.54067081,0.00015,2]
[423591209,1780252243000,-8094.61800012,0.00015,2]
[423591211,1780252243000,-351.55155215,0.00015,2]
[423591208,1780252243000,-701.34009974,0.00015,14]
[423591212,1780252243000,-151.0,0.00015,2]
[423591207,1780252243000,-2079.52275691,0.00015,2]
[423591210,1780252243000,-5257690.54003288,0.00015,2]
[423591215,1780252243000,-1038.973676,0.00015,2]
[423591229,1780252243000,-1067.568537,0.00015068,2]
[423591216,1780252243000,-1038.973676,0.00015,2]
[423591223,1780252243000,-1067.568537,0.00015068,2]
[423591221,1780252243000,-450.31,0.00015068,2]
[423591217,1780252243000,-1038.973676,0.00015,2]
[423591218,1780252243000,-1038.973676,0.00015,2]
[423591220,1780252243000,-151.0,0.00015,2]
[423591222,1780252243000,-1067.568537,0.00015068,2]
[423591225,1780252243000,-1067.568537,0.00015068,2]
[423591234,1780252243000,-166.66,0.00015484,2]
[423591233,1780252243000,-1517.64,0.000153,2]
[423591235,1780252243000,-166.66,0.00015785,2]
[423591224,1780252243000,-1067.568537,0.00015068,2]
[423591214,1780252243000,-151.0,0.00015,2]
[423591258,1780252243000,-772.6,0.0001841,2]
[423591250,1780252243000,-389.761139,0.00016438,2]
[423591271,1780252243000,-9999.99,0.00018533,2]
[423591292,1780252243000,-151.0,0.00019516,2]
[423591295,1780252243000,-151.0,0.00019516,2]
[423591300,1780252243000,-151.0,0.00019516,2]
[423591299,1780252243000,-151.0,0.00019516,2]
[423591298,1780252243000,-151.0,0.00019516,2]
[423591304,1780252243000,-151.0,0.00019516,2]
[423591296,1780252243000,-151.0,0.00019516,2]
[423591297,1780252243000,-151.0,0.00019516,2]
[423591294,1780252243000,-151.0,0.00019516,2]
[423591301,1780252243000,-151.0,0.00019516,2]
[423591302,1780252243000,-151.0,0.00019516,2]
[423591293,1780252243000,-151.0,0.00019516,2]
[423591305,1780252243000,-151.0,0.00019516,2]
[423591307,1780252243000,-292.895239,0.000196,2]
[423591309,1780252243000,-590.1658022,0.000199,2]
[423591306,1780252243000,-151.0,0.00019516,2]
[423591315,1780252243000,-1313.45756698,0.0002,2]
[423591310,1780252243000,-5286.26766859,0.0002,2]
[423591314,1780252243000,-328.95079458,0.0002,2]
[423591311,1780252243000,-321.0,0.0002,2]
[423591312,1780252243000,-245.72939499,0.0002,2]
[423591313,1780252243000,-513.0,0.0002,2]
[423591316,1780252243000,-343.0,0.0002,2]
[423591257,1780252243000,-198.90849244,0.000184,2]
[423591308,1780252243000,-1739.39,0.000199,2]
[423591290,1780252243000,-151.0,0.00019516,2]
[423591303,1780252243000,-151.0,0.00019516,2]
[423591289,1780252243000,-151.0,0.00019516,2]
[423591288,1780252243000,-151.0,0.00019516,2]
[423591269,1780252243000,-150.99,0.00018533,2]
[423591260,1780252243000,-299.99,0.00018533,4]
[423591268,1780252243000,-9999.99,0.00018533,2]
[423591272,1780252243000,-9999.99,0.00018533,2]
[423591264,1780252243000,-3665.18,0.00018533,5]
[423591267,1780252243000,-4999.99,0.00018533,2]
[423591266,1780252243000,-3942.05,0.00018533,2]
[423591274,1780252243000,-198.90849244,0.000186,2]
[423591273,1780252243000,-212375.35,0.00018533,2]
[423591277,1780252243000,-1788.89432231,0.00019,2]
[423591275,1780252243000,-384.58747906,0.00018753,2]
[423591262,1780252243000,-999.99,0.00018533,2]
[423591291,1780252243000,-151.0,0.00019516,2]
[423591287,1780252243000,-151.0,0.00019516,2]
[423591276,1780252243000,-198.90849244,0.000188,2]
[423591286,1780252243000,-311.217823,0.00019178,2]
[423591285,1780252243000,-311.217823,0.00019178,2]
[423591282,1780252243000,-311.217823,0.00019178,2]
[423591284,1780252243000,-311.217823,0.00019178,2]
[423591279,1780252243000,-311.217823,0.00019178,2]
[423591281,1780252243000,-311.217823,0.00019178,2]
[423591283,1780252243000,-311.217823,0.00019178,2]
[423591278,1780252243000,-1463.69382468,0.00019,2]
[423591280,1780252243000,-311.217823,0.00019178,2]
[423591353,1780252244000,-328.95079458,0.000204,2]
[423591355,1780252244000,-541.62122984,0.00020577,2]
[423591361,1780252244000,-541.62122984,0.00020996,2]
[423591357,1780252244000,-2684.65380489,0.000207,2]
[423591354,1780252244000,-447.1,0.00020548,2]
[423591348,1780252244000,-909.04674527,0.00020165,2]
[423591352,1780252244000,-772.6,0.00020381,2]
[423591347,1780252244000,-2872.47408312,0.00020115,2]
[423591349,1780252244000,-328.95079458,0.000202,2]
[423591360,1780252244000,-328.95079458,0.000208,2]
[423591356,1780252244000,-328.95079458,0.000206,2]
[423591358,1780252244000,-157.06,0.00020703,2]
[423591371,1780252244000,-444.0,0.00021,2]
[423591362,1780252244000,-321.0,0.00021,2]
[423591363,1780252244000,-513.0,0.00021,2]
[423591364,1780252244000,-343.0,0.00021,2]
[423591365,1780252244000,-3415.87687989,0.00021,7]
[423591367,1780252244000,-1144.0,0.00021,2]
[423591366,1780252244000,-1421.0,0.00021,2]
[423591369,1780252244000,-220.0,0.00021,2]
[423591368,1780252244000,-157.0,0.00021,2]
[423591373,1780252244000,-839.0,0.00021,2]
[423591372,1780252244000,-287.0,0.00021,2]
[423591374,1780252244000,-192.0,0.00021,2]
[423591351,1780252244000,-541.62122984,0.00020294,2]
[423591359,1780252244000,-541.62122984,0.00020726,2]
[423591345,1780252244000,-300.0,0.000201,10]
[423591319,1780252244000,-2651.58474907,0.0002,2]
[423591340,1780252244000,-450.0,0.00020031,7]
[423591317,1780252244000,-200.0,0.0002,2]
[423591318,1780252244000,-1060.22129421,0.0002,2]
[423591376,1780252244000,-541.62122984,0.00021029,2]
[423591324,1780252244000,-220.0,0.0002,2]
[423591320,1780252244000,-300.51843336,0.0002,2]
[423591321,1780252244000,-1421.0,0.0002,2]
[423591322,1780252244000,-1144.0,0.0002,2]
[423591325,1780252244000,-1199.0,0.0002,2]
[423591326,1780252244000,-444.0,0.0002,2]
[423591323,1780252244000,-157.0,0.0002,2]
[423591328,1780252244000,-200.0,0.0002,10]
[423591338,1780252244000,-248.80811346,0.00020029,2]
[423591337,1780252244000,-541.62122984,0.00020011,2]
[423591327,1780252244000,-287.0,0.0002,2]
[423591330,1780252244000,-192.0,0.0002,2]
[423591332,1780252244000,-1907.0,0.0002,2]
[423591334,1780252244000,-7764.55,0.0002,2]
[423591329,1780252244000,-839.0,0.0002,2]
[423591335,1780252244000,-2000.0,0.0002,7]
[423591331,1780252244000,-1841.0,0.0002,2]
[423591333,1780252244000,-400.0,0.0002,2]
[423591336,1780252244000,-6959.0,0.0002,2]
[423591342,1780252244000,-1273.0,0.00020078,2]
[423591339,1780252244000,-1050.0,0.00020031,2]
[423591344,1780252244000,-932.0,0.00020078,2]
[423591350,1780252244000,-541.62122984,0.0002021,2]
[423591341,1780252244000,-525.0,0.00020078,2]
[423591343,1780252244000,-1226.0,0.00020078,2]
[423591375,1780252244000,-1841.0,0.00021,2]
[423591370,1780252244000,-1199.0,0.00021,2]
[423591388,1780252244000,-815.0747695,0.00022,7]
[423591418,1780252244000,-343.0,0.00023,2]
[423591412,1780252244000,-10269.34222228,0.000225,2]
[423591417,1780252244000,-513.0,0.00023,2]
[423591419,1780252244000,-354.51006341,0.00023,2]
[423591420,1780252244000,-1421.0,0.00023,2]
[423591431,1780252244000,-157.07,0.00023046,2]
[423591430,1780252244000,-1841.0,0.00023,2]
[423591425,1780252244000,-444.0,0.00023,2]
[423591422,1780252244000,-157.0,0.00023,2]
[423591424,1780252244000,-1199.0,0.00023,2]
[423591421,1780252244000,-1144.0,0.00023,2]
[423591423,1780252244000,-220.0,0.00023,2]
[423591429,1780252244000,-192.0,0.00023,2]
[423591428,1780252244000,-839.0,0.00023,2]
[423591427,1780252244000,-287.0,0.00023,2]
[423591426,1780252244000,-501.48,0.00023,30]
[423591434,1780252244000,-1273.0,0.00023078,2]
[423591441,1780252244000,-1124.0,0.00023964,2]
[423591439,1780252244000,-1173.34378675,0.000235,2]
[423591433,1780252244000,-525.0,0.00023078,2]
[423591437,1780252244000,-507.31049268,0.00023166,7]
[423591442,1780252244000,-1039.36066149,0.00024,2]
[423591432,1780252244000,-631.68,0.00023078,2]
[423591438,1780252244000,-1169.5,0.000232,14]
[423591436,1780252244000,-932.0,0.00023078,2]
[423591440,1780252244000,-7764.55,0.00023537,2]
[423591378,1780252244000,-7764.55,0.00021769,2]
[423591413,1780252244000,-2000.0,0.000225,7]
[423591414,1780252244000,-200.0,0.00022687,2]
[423591435,1780252244000,-1226.0,0.00023078,2]
[423591415,1780252244000,-384.58747906,0.00022942,2]
[423591387,1780252244000,-343.0,0.00022,2]
[423591392,1780252244000,-157.0,0.00022,2]
[423591389,1780252244000,-1421.0,0.00022,2]
[423591391,1780252244000,-1144.0,0.00022,2]
[423591380,1780252244000,-157.06,0.00021874,2]
[423591385,1780252244000,-513.0,0.00022,2]
[423591382,1780252244000,-5000.0,0.00021918,2]
[423591411,1780252244000,-2073.75,0.00022466,2]
[423591393,1780252244000,-220.0,0.00022,2]
[423591394,1780252244000,-1199.0,0.00022,2]
[423591405,1780252244000,-1739.39,0.000221,7]
[423591404,1780252244000,-389.83,0.000221,14]
[423591397,1780252244000,-287.0,0.00022,2]
[423591383,1780252244000,-321.0,0.00022,2]
[423591399,1780252244000,-192.0,0.00022,2]
[423591396,1780252244000,-395.04,0.00022,30]
[423591407,1780252244000,-308.24,0.000222,2]
[423591410,1780252244000,-1536.28,0.00022466,2]
[423591409,1780252244000,-802.75493388,0.00022368,2]
[423591406,1780252244000,-640.0,0.00022136,7]
[423591408,1780252244000,-772.6,0.00022353,2]
[423591416,1780252244000,-321.0,0.00023,2]
[423591400,1780252244000,-1841.0,0.00022,2]
[423591402,1780252244000,-1335.43,0.00022,2]
[423591401,1780252244000,-450.0,0.00022,2]
[423591395,1780252244000,-444.0,0.00022,2]
[423591398,1780252244000,-839.0,0.00022,2]
[423591403,1780252244000,-528.09684069,0.000221,7]
[423591487,1780252245000,-500.0,0.00024384,2]
[423591491,1780252245000,-280.3487875,0.00024564,2]
[423591489,1780252245000,-3804.27846661,0.00024464,2]
[423591480,1780252245000,-500.0,0.00024384,2]
[423591490,1780252245000,-151.0,0.00024564,2]
[423591473,1780252245000,-500.0,0.00024384,2]
[423591474,1780252245000,-500.0,0.00024384,2]
[423591475,1780252245000,-500.0,0.00024384,2]
[423591472,1780252245000,-500.0,0.00024384,2]
[423591471,1780252245000,-500.0,0.00024384,2]
[423591479,1780252245000,-150.0,0.00024384,2]
[423591496,1780252245000,-500.0,0.00024658,2]
[423591503,1780252245000,-1335.43,0.00024909,7]
[423591481,1780252245000,-500.0,0.00024384,2]
[423591482,1780252245000,-500.0,0.00024384,2]
[423591483,1780252245000,-500.0,0.00024384,2]
[423591485,1780252245000,-500.0,0.00024384,2]
[423591488,1780252245000,-392.60649348,0.00024384,2]
[423591501,1780252245000,-500.0,0.00024658,2]
[423591492,1780252245000,-1739.39,0.000246,7]
[423591493,1780252245000,-1000.0,0.00024658,2]
[423591497,1780252245000,-500.0,0.00024658,2]
[423591499,1780252245000,-500.0,0.00024658,2]
[423591495,1780252245000,-500.0,0.00024658,2]
[423591494,1780252245000,-500.0,0.00024658,2]
[423591470,1780252245000,-500.0,0.00024384,2]
[423591486,1780252245000,-500.0,0.00024384,2]
[423591469,1780252245000,-500.0,0.00024384,2]
[423591455,1780252245000,-192.0,0.00024,2]
[423591468,1780252245000,-500.0,0.00024384,2]
[423591443,1780252245000,-321.0,0.00024,2]
[423591444,1780252245000,-513.0,0.00024,2]
[423591447,1780252245000,-1421.0,0.00024,2]
[423591445,1780252245000,-1256.76188349,0.00024,2]
[423591448,1780252245000,-1144.0,0.00024,2]
[423591449,1780252245000,-157.0,0.00024,2]
[423591446,1780252245000,-343.0,0.00024,2]
[423591450,1780252245000,-220.0,0.00024,2]
[423591452,1780252245000,-444.0,0.00024,2]
[423591453,1780252245000,-287.0,0.00024,2]
[423591451,1780252245000,-1199.0,0.00024,2]
[423591454,1780252245000,-839.0,0.00024,2]
[423591476,1780252245000,-500.0,0.00024384,2]
[423591457,1780252245000,-500.0,0.00024,2]
[423591456,1780252245000,-1841.0,0.00024,2]
[423591459,1780252245000,-269.52,0.00024174,2]
[423591460,1780252245000,-737.12,0.00024174,2]
[423591463,1780252245000,-150.0,0.00024384,2]
[423591462,1780252245000,-772.6,0.00024324,2]
[423591461,1780252245000,-4796.5,0.00024174,2]
[423591464,1780252245000,-150.0,0.00024384,2]
[423591465,1780252245000,-150.0,0.00024384,2]
[423591466,1780252245000,-500.0,0.00024384,2]
[423591467,1780252245000,-213.1945436,0.00024384,2]
[423591478,1780252245000,-294.77040755,0.00024384,2]
[423591477,1780252245000,-500.0,0.00024384,2]
[423591458,1780252245000,-1219.75,0.00024174,2]
[423591500,1780252245000,-500.0,0.00024658,2]
[423591484,1780252245000,-500.0,0.00024384,2]
[423591504,1780252245000,-321.0,0.00025,2]
[423591529,1780252245000,-525.0,0.00026078,2]
[423591535,1780252245000,-1469.428798,0.00026384,2]
[423591538,1780252245000,-1469.428798,0.00026384,2]
[423591536,1780252245000,-1469.428798,0.00026384,2]
[423591537,1780252245000,-1469.428798,0.00026384,2]
[423591540,1780252245000,-1469.428798,0.00026384,2]
[423591541,1780252245000,-1469.428798,0.00026384,2]
[423591542,1780252245000,-200.0,0.00026947,2]
[423591547,1780252245000,-495.84,0.00027397,30]
[423591551,1780252245000,-843.767474,0.00027397,2]
[423591544,1780252245000,-152.25193405,0.00027124,2]
[423591549,1780252245000,-1500.0,0.00027397,2]
[423591543,1780252245000,-7764.55,0.00027074,7]
[423591545,1780252245000,-384.58747906,0.00027131,2]
[423591546,1780252245000,-655.0,0.00027137,2]
[423591548,1780252245000,-298.92315729,0.00027397,2]
[423591552,1780252245000,-843.767474,0.00027397,2]
[423591550,1780252245000,-300.0,0.00027397,2]
[423591553,1780252245000,-843.767474,0.00027397,2]
[423591557,1780252245000,-843.767474,0.00027397,2]
[423591560,1780252245000,-151.0,0.00027397,2]
[423591556,1780252245000,-843.767474,0.00027397,2]
[423591554,1780252245000,-843.767474,0.00027397,2]
[423591555,1780252245000,-843.767474,0.00027397,2]
[423591561,1780252245000,-151.0,0.00027397,2]
[423591558,1780252245000,-843.767474,0.00027397,2]
[423591559,1780252245000,-151.0,0.00027397,2]
[423591539,1780252245000,-1469.428798,0.00026384,2]
[423591534,1780252245000,-1469.428798,0.00026384,2]
[423591502,1780252245000,-500.0,0.00024658,2]
[423591533,1780252245000,-772.6,0.00026296,2]
[423591498,1780252245000,-500.0,0.00024658,2]
[423591505,1780252245000,-513.0,0.00025,2]
[423591506,1780252245000,-360.0,0.00025,2]
[423591511,1780252245000,-235.07026131,0.00025,2]
[423591513,1780252245000,-445.25459875,0.00025,2]
[423591508,1780252245000,-1430.135698,0.00025,2]
[423591507,1780252245000,-184409.06640047,0.00025,2]
[423591531,1780252245000,-1226.0,0.00026078,2]
[423591512,1780252245000,-1202.33968552,0.00025,2]
[423591510,1780252245000,-176.0,0.00025,2]
[423591515,1780252245000,-841.0,0.00025,2]
[423591514,1780252245000,-298.34377798,0.00025,2]
[423591523,1780252245000,-269.52,0.00025786,2]
[423591509,1780252245000,-1160.0,0.00025,2]
[423591527,1780252245000,-550.0,0.00026,2]
[423591524,1780252245000,-737.12,0.00025786,2]
[423591532,1780252245000,-932.0,0.00026078,2]
[423591528,1780252245000,-157.06,0.00026,2]
[423591522,1780252245000,-1219.75,0.00025786,2]
[423591519,1780252245000,-7764.55,0.00025306,7]
[423591518,1780252245000,-2000.0,0.00025,7]
[423591530,1780252245000,-1273.0,0.00026078,2]
[423591521,1780252245000,-150.0,0.00025754,2]
[423591525,1780252245000,-4796.5,0.00025786,2]
[423591517,1780252245000,-1858.0,0.00025,2]
[423591516,1780252245000,-211.0,0.00025,2]
[423591526,1780252245000,-500.0,0.00026,2]
[423591520,1780252245000,-206.95,0.00025749,2]
[423591610,1780252246000,-177.35374045,0.00028423,2]
[423591601,1780252246000,-183.41485735,0.00028362,2]
[423591603,1780252246000,-180.67616346,0.00028384,2]
[423591600,1780252246000,-171.43725822,0.00028362,2]
[423591599,1780252246000,-151.03828496,0.00028362,2]
[423591592,1780252246000,-153.47924305,0.00028358,2]
[423591595,1780252246000,-196.17437972,0.00028358,2]
[423591591,1780252246000,-161.48617791,0.00028358,2]
[423591593,1780252246000,-156.78123228,0.00028358,2]
[423591589,1780252246000,-281.32769699,0.00028358,2]
[423591596,1780252246000,-154.54437356,0.00028358,2]
[423591607,1780252246000,-188.88767568,0.00028384,2]
[423591619,1780252246000,-2596.54,0.00028662,30]
[423591608,1780252246000,-154.52767575,0.00028384,2]
[423591606,1780252246000,-168.11886237,0.00028384,2]
[423591605,1780252246000,-157.62453452,0.00028384,2]
[423591609,1780252246000,-216.43131754,0.00028423,2]
[423591604,1780252246000,-169.18689808,0.00028384,2]
[423591612,1780252246000,-200.0,0.00028525,2]
[423591622,1780252246000,-230.72,0.0002867,2]
[423591623,1780252246000,-232.34,0.00028696,7]
[423591613,1780252246000,-2318.0,0.0002853,3]
[423591611,1780252246000,-166.79190117,0.00028423,2]
[423591614,1780252246000,-1590.0,0.0002853,3]
[423591621,1780252246000,-232.34,0.00028667,2]
[423591598,1780252246000,-175.07971732,0.00028358,2]
[423591602,1780252246000,-164.47429999,0.00028384,2]
[423591594,1780252246000,-219.62124153,0.00028358,2]
[423591575,1780252246000,-655.0,0.00027671,2]
[423591590,1780252246000,-151.57106199,0.00028358,2]
[423591616,1780252246000,-1440.28,0.00028659,30]
[423591562,1780252246000,-151.0,0.00027397,2]
[423591563,1780252246000,-151.0,0.00027397,2]
[423591565,1780252246000,-151.0,0.00027397,2]
[423591567,1780252246000,-288.517632,0.00027397,2]
[423591566,1780252246000,-151.0,0.00027397,2]
[423591571,1780252246000,-805.18,0.000274,7]
[423591573,1780252246000,-5020.83,0.000274,14]
[423591572,1780252246000,-486.43,0.000274,7]
[423591574,1780252246000,-2000.0,0.000275,7]
[423591564,1780252246000,-151.0,0.00027397,2]
[423591569,1780252246000,-151.0,0.00027397,2]
[423591568,1780252246000,-17484.73,0.00027397,10]
[423591570,1780252246000,-14570.61,0.00027397,10]
[423591576,1780252246000,-1739.39,0.000277,7]
[423591586,1780252246000,-270.94413073,0.00028358,2]
[423591577,1780252246000,-200.0,0.00027736,2]
[423591578,1780252246000,-1335.43,0.00027818,7]
[423591585,1780252246000,-169.97247823,0.00028358,2]
[423591581,1780252246000,-655.0,0.00028205,3]
[423591580,1780252246000,-600.0,0.00028,2]
[423591582,1780252246000,-772.6,0.00028267,2]
[423591579,1780252246000,-1433.47846238,0.00028,60]
[423591583,1780252246000,-236.77140853,0.00028358,2]
[423591584,1780252246000,-150.8617182,0.00028358,2]
[423591587,1780252246000,-292.74917799,0.00028358,2]
[423591597,1780252246000,-159.81869547,0.00028358,2]
[423591588,1780252246000,-160.15353928,0.00028358,2]
[423591615,1780252246000,-1460.42,0.00028656,30]
[423591617,1780252246000,-1067.88,0.00028659,30]
[423591669,1780252246000,-800.0,0.00028981,11]
[423591653,1780252246000,-800.0,0.00028894,11]
[423591652,1780252246000,-230.72,0.00028877,7]
[423591655,1780252246000,-800.0,0.00028894,11]
[423591660,1780252246000,-800.0,0.00028894,11]
[423591658,1780252246000,-800.0,0.00028894,11]
[423591657,1780252246000,-800.0,0.00028894,11]
[423591661,1780252246000,-232.34,0.00028905,30]
[423591662,1780252246000,-230.72,0.00028907,30]
[423591664,1780252246000,-230.72,0.00028936,2]
[423591663,1780252246000,-232.34,0.00028935,2]
[423591665,1780252246000,-232.34,0.00028964,7]
[423591671,1780252246000,-1460.42,0.00028985,2]
[423591672,1780252246000,-1440.28,0.00028987,2]
[423591667,1780252246000,-800.0,0.00028981,11]
[423591670,1780252246000,-321.65955332,0.00028981,11]
[423591668,1780252246000,-800.0,0.00028981,11]
[423591666,1780252246000,-230.72,0.00028966,7]
[423591673,1780252246000,-1067.88,0.00028987,2]
[423591674,1780252246000,-1146.06,0.00028988,2]
[423591677,1780252246000,-800.0,0.00028993,11]
[423591678,1780252246000,-800.0,0.00028993,11]
[423591679,1780252246000,-800.0,0.00028993,11]
[423591675,1780252246000,-2596.54,0.00028989,2]
[423591680,1780252246000,-800.0,0.00028993,11]
[423591676,1780252246000,-2537.66,0.00028992,2]
[423591681,1780252246000,-800.0,0.00028993,11]
[423591618,1780252246000,-1146.06,0.00028661,30]
[423591656,1780252246000,-800.0,0.00028894,11]
[423591654,1780252246000,-800.0,0.00028894,11]
[423591659,1780252246000,-800.0,0.00028894,11]
[423591651,1780252246000,-232.34,0.00028875,7]
[423591620,1780252246000,-2537.66,0.00028665,30]
[423591624,1780252246000,-230.72,0.00028699,7]
[423591636,1780252246000,-232.34,0.00028815,30]
[423591630,1780252246000,-232.34,0.00028756,2]
[423591628,1780252246000,-230.72,0.00028729,30]
[423591625,1780252246000,-486.43,0.000287,7]
[423591626,1780252246000,-5020.83,0.000287,14]
[423591632,1780252246000,-495.84,0.00028767,30]
[423591650,1780252246000,-1590.0,0.0002885,3]
[423591633,1780252246000,-232.34,0.00028786,7]
[423591635,1780252246000,-200.0,0.00028808,2]
[423591631,1780252246000,-230.72,0.00028758,2]
[423591629,1780252246000,-655.0,0.00028739,3]
[423591634,1780252246000,-230.72,0.00028788,7]
[423591627,1780252246000,-232.34,0.00028726,30]
[423591648,1780252246000,-163.0,0.0002885,3]
[423591638,1780252246000,-1460.42,0.0002882,7]
[423591643,1780252246000,-2537.66,0.00028828,7]
[423591642,1780252246000,-2596.54,0.00028825,7]
[423591644,1780252246000,-7764.55,0.00028843,7]
[423591645,1780252246000,-232.34,0.00028845,2]
[423591639,1780252246000,-1440.28,0.00028823,7]
[423591647,1780252246000,-2319.0,0.0002885,3]
[423591640,1780252246000,-1067.88,0.00028823,7]
[423591641,1780252246000,-1146.06,0.00028824,7]
[423591649,1780252246000,-2319.0,0.0002885,3]
[423591637,1780252246000,-230.72,0.00028818,30]
[423591646,1780252246000,-230.72,0.00028847,2]
[423591733,1780252247000,-1590.0,0.0002917,3]